Cogmind - Beta 13 @@@ ROGUE MODE // 2024.04.19 @ 01:24:56 Player: RKyeun Result: Self-destructed Performance ------------- Evolutions (1) 500 Regions Visited (2) 400 Robots Destroyed (13) 65 Value Destroyed (298) 298 Prototype IDs (0) 0 Alien Tech Used (0) 0 Bonus (0) 0 TOTAL SCORE: 1263 Bonus ------- None Cogmind --------- Core Integrity 350/400 Matter 206/300 Energy 85/125 System Corruption 0% Temperature Cool (0) Movement Flying (112) Ox1 Location -9/Materials Parts ------- > --- POWER (1) -------- Light Ion Engine > --- PROPULSION (3) --- VTOL Module VTOL Module > --- UTILITY (3) ------ Sensor Array ECM Suite > --- WEAPON (2) ------- Hammer Hammer > --- INVENTORY (5) ---- Improved Ion Engine Hardened Light Armor Plating Peak State ------------ > --- POWER ------------ Light Ion Engine > --- PROPULSION ------- VTOL Module VTOL Module VTOL Module > --- UTILITY ---------- Sensor Array Signal Interpreter Hardened Light Armor Plating > --- WEAPON ----------- Hammer Hammer > --- INVENTORY -------- Light Ion Engine Improved Ion Engine VTOL Module [Rating: 13] Favorites ----------- Power Light Ion Engine Engine Light Ion Engine Propulsion VTOL Module Treads Light Treads Flight Unit VTOL Module Utility Sensor Array Device Sensor Array Storage Small Storage Unit Processor Signal Interpreter Protection Hardened Light Armor Plating Weapon Mining Claw Impact Weapon Hammer Slashing Weapon Mining Claw Special Melee Weapon Datajack Build | -11 -10 -9 ------- Run | Yrd Mat Mat Slots Evolved 2 | . . 2 Power . | . . . Propulsion 1 | . . 1 Utility 1 | . . 1 Weapon . | . . . Parts Attached 33 | 4 21 8 Power 7 | 1 3 3 Engine 7 | 1 3 3 Core . | . . . Reactor . | . . . Propulsion 8 | 2 4 2 Treads 2 | 2 . . Leg . | . . . Wheel . | . . . Hover . | . . . Flight 6 | . 4 2 Utility 11 | 1 7 3 Device 6 | . 4 2 Storage 1 | 1 . . Processor 1 | . 1 . Hackware . | . . . Protection 3 | . 2 1 Artifact . | . . . Weapon 7 | . 7 . Energy Gun . | . . . Energy Cannon . | . . . Ballistic Gun . | . . . Ballistic Cannon . | . . . Launcher . | . . . Special Weapon . | . . . Impact Weapon 4 | . 4 . Slashing Weapon 2 | . 2 . Piercing Weapon . | . . . Special Melee Weapon 1 | . 1 . Unidentified Prototypes . | . . . Parts Lost 5 | . 1 4 Power 1 | . . 1 Propulsion 3 | . 1 2 Utility 1 | . . 1 Weapon . | . . . Highest Loss Streak 4 | . 1 4 To Critical Strikes . | . . . Average Slot Usage (%) 86 | . 83 97 Engine 13 | . 14 11 Treads 8 | . 10 . Flight 19 | . 15 31 Device 15 | . 10 29 Storage 4 | . 5 . Processor 2 | . 3 2 Impact Weapon 7 | . 3 22 Slashing Weapon 9 | . 12 . Special Melee Weapon 3 | . 5 . Naked Turns . | . . . Heaviest Build 13 | 10 13 12 Greatest Support 40 | 40 40 12 Greatest Overweight (x) 2 | . 2 1 Average Overweight (x) . | . . . Largest Inventory Capacity 8 | 8 8 5 Average Capacity 6 | 6 6 5 Most Carried 5 | 3 5 5 Average Carried 3 | . 3 3 Final Capacity 8 | 8 5 5 Final Carried 5 | 1 5 2 Class Distribution -------------------- 50% | Mutant 34% | Sprinter 14% | Scavenger-Mutant Dominant Class ---------------- Mutant | -10/Materials Sprinter | -9/Materials Resources | -11 -10 -9 ----------- Run | Yrd Mat Mat Matter Collected 411 | 220 109 82 Remotely . | . . . Salvage Created 404 | . 322 82 Parts 31 | . 29 2 Haulers Intercepted 1 | . . 1 Recyclers Shooed . | . . . Parts Field Recycled . | . . . Retrieved Matter . | . . . Parts Self-Destructed . | . . . Prevented . | . . . Kills | -11 -10 -9 ------- Run | Yrd Mat Mat Combat Hostiles Destroyed 9 | . 8 1 Melee 8 | . 8 . Classes Destroyed 6 | . 4 2 Hauler 1 | . . 1 Recycler 1 | . 1 . Watcher 2 | . 2 . Swarmer 3 | . 3 . Grunt 5 | . 5 . Sentry 1 | . . 1 Best Kill Streak 6 | . 6 1 Combat Bots Only 5 | . 5 1 Max Kills in Single Turn 1 | . 1 1 Gunslinging . | . . . Exploded . | . . . Melee 1 | . 1 . Uniques/NPCs Destroyed . | . . . Combat | -11 -10 -9 -------- Run | Yrd Mat Mat Hostile Shots Fired 85 | . 59 26 Missed 15 | . 10 5 Damage Taken 740 | . 490 250 Core 233 | . 183 50 Absorbed by Shields 57 | . . 57 Core Remaining (%) 63 | 100 26 . Volleys Fired . | . . . Largest . | . . . Hottest . | . . . Shots Fired . | . . . Gun . | . . . Cannon . | . . . Launcher . | . . . Special . | . . . Kinetic . | . . . Thermal . | . . . Explosive . | . . . Electromagnetic . | . . . Robot Hit Streak . | . . . Robot Miss Streak . | . . . Penetration Max . | . . . Secondary Targets . | . . . Shots Hit Robots 38 | . 23 15 Core Hits 12 | . 11 1 Critical Kills . | . . . Critical Parts Destroyed 2 | . . 2 Critical Strikes 2 | . . 2 Smash 2 | . . 2 Melee Attacks 60 | . 44 16 Impact 17 | . 1 16 Slashing 41 | . 41 . Piercing . | . . . Sneak Attacks 3 | . 1 2 Combat Hostiles . | . . . Follow-up Attacks 3 | . . 3 Damage Inflicted 859 | . 525 334 Guns . | . . . Cannons . | . . . Explosions . | . . . Melee 859 | . 525 334 Ramming . | . . . Kinetic . | . . . Thermal . | . . . Explosive . | . . . Electromagnetic . | . . . Impact 334 | . . 334 Slashing 525 | . 525 . Piercing . | . . . Highest Corruption . | . . . Average Corruption . | . . . Corruption Purged . | . . . Corruption Blocked . | . . . Overload Shots . | . . . Overflow Damage 107 | . 11 96 Projectiles . | . . . Explosions . | . . . Melee 107 | . 11 96 Knockbacks . | . . . Impact . | . . . Kinetic . | . . . Secondary . | . . . Self-Inflicted Damage . | . . . Shots . | . . . Rammed . | . . . Targets Rammed . | . . . Kicked . | . . . Crushed . | . . . Highest Temperature . | . . . Average Temperature . | . . . Received Heat Transfer 237 | . 159 78 Siege Activations . | . . . Robots Corrupted . | . . . Combat Hostiles . | . . . Parts Fried 1 | . . 1 Impact Corruptions 4 | . . 4 Robots Melted . | . . . Combat Hostiles . | . . . Parts Melted . | . . . Heat Transferred . | . . . Parts Sabotaged . | . . . Parts Stolen . | . . . Parts Stripped . | . . . Power Chain Reactions . | . . . Alert | -11 -10 -9 ------- Run | Yrd Mat Mat Peak Influence 417 | . 417 66 Initial 8 | . . 8 Average 93 | . 124 38 Maximum Alert Level 2 | . 2 . Low Security (%) 79 | 100 69 100 Level 1 14 | . 20 . Level 2 6 | . 9 . Level 3 . | . . . Level 4 . | . . . Level 5 . | . . . High Security . | . . . Max Security . | . . . Squads Dispatched 1 | . 1 . Investigation . | . . . Extermination . | . . . Reinforcement 1 | . 1 . Assault . | . . . Garrison . | . . . Intercept . | . . . Searches Triggered . | . . . Construction Impeded . | . . . Haulers Reinforced . | . . . Active Scanning Responses . | . . . Cargo Convoy Interrupts . | . . . Stealth | -11 -10 -9 --------- Run | Yrd Mat Mat Distress Signals 1 | . 1 . Communications Jammed . | . . . Distress Signals . | . . . Times Spotted 16 | . 14 2 Peak Tracking Total 8 | . 8 2 Tactical Retreats 1 | . . 1 Traps | -11 -10 -9 ------- Run | Yrd Mat Mat Traps Triggered . | . . . Indirectly . | . . . Trap Hack Attempts . | . . . Triggered . | . . . Disarmed . | . . . Reprogrammed . | . . . Reused . | . . . Traps Extracted . | . . . Installed . | . . . Triggered . | . . . Machines | -11 -10 -9 ---------- Run | Yrd Mat Mat Machines Disabled . | . . . Max in Single Turn . | . . . Machines Repaired . | . . . Machines Dismantled . | . . . Machines Sabotaged . | . . . Overloaded Fab Kills . | . . . Hacking | -11 -10 -9 --------- Run | Yrd Mat Mat Machines Accessed 7 | . 5 2 Terminals 5 | . 3 2 Fabricators . | . . . Repair Stations 1 | . 1 . Recycling Units 1 | . 1 . Scanalyzers . | . . . Garrison Access . | . . . Total Hacks 13 | . 10 3 Successful 7 | . 6 1 Failed 6 | . 4 2 Catastrophic 4 | . 2 2 Database Lockouts . | . . . Manual 2 | . . 2 Terminals 9 | . 6 3 Fabricators . | . . . Repair Stations 2 | . 2 . Recycling Units 2 | . 2 . Scanalyzers . | . . . Garrison Access . | . . . Terminal Hacks 4 | . 3 1 Robot Analysis 1 | . . 1 Unreport Threat 2 | . 2 . Zone Layout 1 | . 1 . Fabricator Hacks . | . . . Repair Station Hacks 1 | . 1 . Scan Component 1 | . 1 . Recycling Unit Hacks 2 | . 2 . Report Inventory 1 | . 1 . Retrieve Components 1 | . 1 . Scanalyzer . | . . . Garrison Access Hacks . | . . . Unauthorized Hacks . | . . . Terminals . | . . . Fabricators . | . . . Repair Stations . | . . . Recycling Units . | . . . Scanalyzers . | . . . Garrison Access . | . . . Data Cores Recovered . | . . . Used . | . . . Hacking Detections 6 | . 4 2 Full Trace Events . | . . . Feedback Events . | . . . Feedback Blocked . | . . . Robot Schematics Acquired . | . . . Robots Built . | . . . Authchips . | . . . Time . | . . . Total Robot Build Rating . | . . . Part Schematics Acquired . | . . . Parts Built . | . . . Authchips . | . . . Time . | . . . Total Part Build Rating . | . . . Parts Repaired . | . . . Time . | . . . Parts Recycled . | . . . Recycled Matter . | . . . Retrieved Matter . | . . . Retrieved Components 1 | . 1 . Parts Scanalyzed . | . . . Part Schematics Acquired . | . . . Parts Damaged . | . . . Bothacking | -11 -10 -9 ------------ Run | Yrd Mat Mat Used RIF Installer . | . . . Robots Hacked 1 | . 1 . Non-combat 1 | . 1 . Combat . | . . . Robot Hacks Applied 1 | . 1 . parse_system 1 | . 1 . Relay Couplers Released . | . . . Fabnet Peak Effective % . | . . . Robots Rewired . | . . . Allies Hacked . | . . . Hacks Repelled . | . . . Allies | -11 -10 -9 -------- Run | Yrd Mat Mat Total Allies . | . . . Largest Group . | . . . Highest-Rated Group . | . . . Highest-Rated Ally . | . . . Total Orders . | . . . Ally Attacks . | . . . Total Damage . | . . . Kills . | . . . Allies Corrupted . | . . . Allies Melted . | . . . Intel | -11 -10 -9 ------- Run | Yrd Mat Mat Robot Analysis Total 1 | . . 1 Derelict Logs Recovered . | . . . Drone Launches . | . . . Drone Recoveries . | . . . Exploration | -11 -10 -9 ------------- Run | Yrd Mat Mat Turns Passed 729 | 75 499 155 Spaces Moved 776 | 45 610 121 Core 6 | 4 2 . Treads 111 | 41 70 . Legs . | . . . Wheels . | . . . Hover . | . . . Flight 659 | . 538 121 Fastest Speed 29 | 50 32 29 Average Speed 52 | 150 50 29 Slowest Speed 160 | 160 160 112 Overloaded Moves . | . . . Propulsion Burnouts . | . . . Robots Hopped . | . . . Cave-ins Triggered . | . . . Exploration Rate (%) 32 | 4 79 13 Regions Visited 2 Branch Regions . Pre-discovered Areas . | . . . Known Exits Taken 1 | . 1 . Unknown Exits Taken 1 | 1 . . Scrap Searched . | . . . Spaces Dug . | . . . Terrain Destroyed . | . . . Melee . | . . . Projectile . | . . . AOE . | . . . Terrain Rammed . | . . . Walls Destroyed . | . . . Machines Disabled . | . . . Actions | -11 -10 -9 --------- Run | Yrd Mat Mat Total 991 | 53 721 217 Wait 81 | . 11 70 Move 774 | 44 609 121 Hop . | . . . Pick Up 23 | 5 16 2 Fast Attach 8 | . 8 . Attach 19 | 4 8 7 Detach 3 | . 1 2 Swap 6 | . 5 1 Drop 20 | . 19 1 Fire . | . . . Melee 57 | . 44 13 Ram . | . . . Kick . | . . . Crush . | . . . Escape Stasis . | . . . Rewire . | . . . Trap . | . . . Miscellaneous . | . . . Route ------- -11/Scrapyard -10/Materials (discovered 3 exits: *Mat x2 / *Min) -9/Materials History --------- Turn | Location | Event 14 | -11/Scrapyard | Discovered new exit (range 16) 76 | -11/Scrapyard | Entered Materials 244 | -10/Materials | Core integrity fell below 50% 319 | -10/Materials | Build established: Mutant 378 | -10/Materials | Discovered new exit (range 10) 470 | -10/Materials | Discovered new exit (range 10) 473 | -10/Materials | Identified exit to Materials 540 | -10/Materials | Discovered new exit (range 16) 545 | -10/Materials | Identified exit to Mines 575 | -10/Materials | Entered another Materials area 575 | -9/Materials | Evolved 2 slots: Propulsion x1, Utility x1 730 | -9/Materials | Self-destructed Last Messages --------------- Hammer follow-up attack on Y-45 Defender. Y-45 Defender suffers critical hit (Smash). Destroyed Imp. Ion Engine. Y-45 Defender system corrupted by crushing effect. Y-45 Defender misfires. Hammer follow-up attack on Y-45 Defender. Lgt. Ion Engine destroyed. Y-45 Defender misfires. VTOL Module destroyed. K-01 Serf collects debris. Shield Generator destroyed. Y-45 Defender suffers critical hit (Smash). Destroyed Beam Rifle. Y-45 Defender system corrupted by crushing effect. Y-45 Defender system terminally corrupted. Lgt. Armor Plating fried. K-01 Serf collects debris. Acquired 39 matter. Map ----- +----------------------------------------------------+ | ?????????????????????????????????????? | | ?????????????????????????????????????? | | ?????????????????????????????????????? | | ?????????????????????????????????????? | | ?????????????????????????????????????? | | ?????????????????????????????????????? | | ?????????????????????????????????????? | | ?????????????????????????????????????? | | ?????????????????????????????????????? | | ?????????????????????????????????????? | | ??????????????????????????? #??????? | | ??????????????????????????? #??????? | | ??????????????????????????# ##?????? | | ?????????????????????????? # ????? | | ?????????????????????????? # ????? | | ?????????????????????????? +?????? | | ?????????????????????????? #?????? | | ?????????????????????????? ??????? | | ??????????????##########??# #??????? | | ??????????????# #??# #??????? | | ??????????????# #??# #??????? | | ??????????????# #??# #??????? | | ??????????????+ #?## ##?????? | | ??????????????# #?# #?????? | | ??????????????# ### #?????? | | ??????????????# + @= T + ? | | ??????????????# ### # """ # | | ??????????????# #?# #?????? | | ??????????????###+######?### ###?????? | | ?????????????#### #########? #???????? | | ?????????????# ## ###?????? | | ?????????????# #?????? | | ?????????????# #?????? | | ?????????????# #?????? | | ?????????????# """ """ """ #?????? | | ???# ????????# """ """ """ #?????? | | ????# !??????# """ """ """ #?????? | | ????# !! ##### #?????? | | ????# + | #?????? | | ????# ################# ##########? | | ????# ??????????????????#=# #? | | ????#????????????????????#!# """ #? | | ?????????????????????????# # "T" #? | | ?????????????????????????# # #? | | ?????????????????????????#!##+##+###?? | | ?????????????????????????#== #???? | | ?????????????????????????#= #???? | | ?????????????????????????# #???? | | ???????????????###+####### #???? | | ????????????? ######### | +----------------------------------------------------+ Best States ------------- Heat Dissipation 35 Energy Generation 12 Energy Capacity 265 Matter Stores 300 Matter Capacity 300 Sight Range 16 Robot Scan Range 14 Terrain Scan Density 10 ECM Strength 1 Armor Coverage 150 Evasion (%) 64 Recoil Reduction 2 Item Schematics ----------------- None Robot Schematics ------------------ None Fabricated ------------ Nothing Alien Tech Used ----------------- None Achievements -------------- Everything Is Under Control Loot Pinata Challenges ------------ None Game ------ Seed HeavyShrapnelGravjet Manual? 0 Play Time 00:28:40 Cumulative 3.1 hours Start 2024.04.19 @ 00:57:50 End 2024.04.19 @ 01:24:56 Sessions 1 Manual Loads 0 Difficulty Rogue Special Mode None Game No. 6 Rogue 6 Adventurer 0 Explorer 0 Win Type - Total 0 Types 0/0/0/0/0/0/0/0/0 Lore% 1 Gallery% 6 Achievement% 5 Wizard Run 0 Options --------- Layout 1 ASCII 0 Keyboard 0 Movement Mouse Keybinds 0 Fullscreen 1 Font 24/Smallcaps Map View 50x35 Zoom Use 0% Tactical HUD 0 Map Filters NONE Filters NONE Steam 0 RUN: 615bd72b-c77e-45e7-83b7-6121a3421c8d